bitfinex-derivatives/quotes_ETHF0:USTF0_20251021
["timestamp","ask_amount","ask_price","bid_price","bid_amount"]
[1761059564743,0.44463,4046.8,4046.7,3.2078]
[1761059564941,10.80263,4046.8,4046.7,3.2078]
[1761059565138,2.0374,4046.7,4046.6,0.00187101]
[1761059565336,19.01043,4046.8,4046.6,0.00187101]
[1761059565337,3.65243,4046.8,4046.6,0.00187101]
[1761059565640,10.358,4046.7,4046.6,0.00187101]
[1761059565845,20.6032,4046.7,4046.1,2.8927]
[1761059566146,0.4447,4046.2,4046.1,2.8927]
[1761059566348,40.8,4046.6,4046.1,2.8927]
[1761059566550,10.80067,4046.5,4046.3,2.8927]
[1761059566844,0.44471,4046.1,4046.0,0.00701]
[1761059567249,0.4447,4046.3,4046.0,0.0088097]
[1761059567550,10.354,4046.2,4046.1,6.1005]
[1761059567739,10.79971,4046.2,4046.0,0.0088097]
[1761059568050,12.83711,4046.2,4046.0,0.0088097]
[1761059568251,10.79971,4046.2,4046.0,0.0088097]
[1761059568439,10.79971,4046.2,4046.0,2.9015097]
[1761059568747,0.44471,4046.2,4046.0,2.9015097]
[1761059568935,10.354,4046.1,4046.0,2.9015097]
[1761059570642,10.35,4046.1,4046.0,2.9015097]
[1761059570842,10.35,4046.4,4046.1,2.7942]
[1761059571044,0.4447,4046.3,4046.1,2.7942]
[1761059571352,0.44471,4046.1,4046.0,0.0088097]
[1761059571842,2.08881,4046.1,4046.0,0.0088097]
[1761059572039,7.08881,4046.1,4046.0,0.0088097]
[1761059572239,1.6441,4046.0,4044.5,3.2078]
[1761059572440,6.32095829,4046.1,4043.9,2.7942]
[1761059572441,0.44491,4044.4,4043.9,3.2078]
[1761059572648,3.2078,4045.2,4044.4,0.4449]
[1761059572839,10.347,4045.1,4045.0,6.002]
[1761059573043,10.347,4045.3,4045.1,3.23902]
[1761059573346,10.347,4045.8,4045.7,2.7942]
[1761059573538,10.347,4045.8,4045.2,2.7942]
[1761059573739,0.4448,4045.3,4045.2,2.7942]
[1761059573936,0.00212333,4045.8,4045.2,2.7942]
[1761059574135,0.00212333,4045.8,4045.7,6.002]
[1761059574341,10.34712333,4045.8,4045.7,6.002]
[1761059574544,10.34712333,4045.8,4045.7,2.7942]
[1761059575045,0.00212333,4045.8,4045.7,2.7942]
[1761059575237,10.34612333,4045.8,4045.7,2.7942]
[1761059575442,0.4448,4045.3,4045.2,2.7942]
[1761059575645,0.44482,4045.1,4045.0,0.00189689]
[1761059575840,10.78782,4045.1,4045.0,2.79609689]
[1761059576052,0.44482,4045.1,4045.0,2.79609689]
[1761059576451,10.78682,4045.1,4045.0,2.79609689]
[1761059576653,0.44482,4045.1,4045.0,2.79609689]
[1761059576949,10.342,4045.1,4045.0,1.12749689]
[1761059577146,10.342,4045.1,4045.0,1.57232689]
[1761059577348,10.341,4045.1,4045.0,1.57232689]
[1761059577650,3.2078,4045.6,4045.3,2.7942]
[1761059577846,0.00212333,4045.8,4045.7,3.23896]
[1761059578046,0.00212333,4045.8,4045.7,6.44676]
[1761059578242,0.00212333,4045.8,4045.7,2.7942]
[1761059578749,10.34112333,4045.8,4045.7,2.7942]
[1761059579061,2.08891,4045.2,4045.0,0.00189689]
[1761059579251,13.5458,4045.1,4045.0,0.00189689]
[1761059579453,3.2078,4045.7,4045.1,2.7942]
[1761059579752,0.44481,4045.3,4045.1,2.7942]
[1761059579954,10.337,4045.2,4045.1,2.7942]
[1761059580145,3.2078,4045.7,4045.1,2.7942]
[1761059580455,0.00212333,4045.8,4045.7,2.7942]
[1761059580642,3.2078,4046.9,4045.8,2.7942]
[1761059580946,3.2078,4047.6,4047.1,2.7942]
[1761059581151,3.2078,4047.6,4047.0,1.1256]
[1761059581152,3.2078,4047.6,4047.3,3.23879]
[1761059581349,10.335,4047.5,4047.1,2.7942]
[1761059581546,0.022,4047.8,4047.3,0.44459]
[1761059581749,0.022,4047.8,4047.0,1.1256]
[1761059581750,0.02478237,4047.8,4047.7,2.7942]
[1761059582149,0.02478237,4047.8,4047.7,7.7942]
[1761059582650,0.02478237,4047.8,4047.7,2.7942]
[1761059583758,0.02478237,4047.8,4047.7,7.7942]
[1761059584054,3.2078,4049.2,4048.2,0.44449]
[1761059584258,0.44438,4049.3,4049.1,2.7942]
[1761059584455,3.2078,4049.7,4048.6,2.7942]
[1761059584959,3.2078,4049.7,4049.1,2.7942]
[1761059585262,0.00201731,4049.7,4049.6,2.7942]
[1761059585451,0.00201731,4049.7,4049.1,2.7942]
[1761059585648,3.2078,4049.5,4049.1,2.7942]
[1761059585848,0.44437,4049.4,4049.1,2.7942]
[1761059586055,0.44438,4049.2,4049.1,2.7942]
[1761059586253,0.44444,4048.7,4048.6,5.4e-06]
[1761059586449,17.44144,4048.7,4048.6,5.4e-06]
[1761059586659,17.44144,4048.7,4047.0,1.1256]
[1761059586660,0.44458,4047.4,4047.2,3.2078]
[1761059586863,1.11124,4048.2,4047.0,1.1256]
[1761059586864,0.44461,4047.1,4047.0,1.1256]
[1761059587057,0.44461,4047.1,4047.0,3.9198]
[1761059587259,11.43454,4047.1,4046.5,2.7942]
[1761059587555,0.44466,4046.7,4046.5,2.7942]
[1761059587756,0.44466,4046.7,4046.5,0.00233102]
[1761059587757,2.11876068,4046.7,4046.5,0.00233102]
[1761059587951,2.78268,4046.6,4045.1,2.7942]
[1761059588149,3.2078,4045.8,4045.5,2.7942]
[1761059588346,0.44477,4045.7,4045.5,2.7942]
[1761059588556,0.44475,4045.9,4045.5,2.7942]
[1761059588758,3.2078,4046.3,4045.5,2.7942]
[1761059588953,0.44477,4045.7,4045.5,2.7942]
[1761059589148,4.8788,4045.7,4044.3,2.7942]
[1761059589356,0.44488,4044.7,4044.3,2.7942]
[1761059589653,3.2078,4045.1,4044.3,2.7942]
[1761059589654,0.44484,4045.1,4044.8,2.7942]
[1761059589859,0.44491,4044.5,4044.4,2.7942]
[1761059590051,0.44491,4044.5,4044.3,0.0030243]
[1761059590252,3.2078,4044.4,4044.3,2.7972243]
[1761059591158,3.2078,4044.4,4044.3,0.0030243]
[1761059591560,3.2078,4045.0,4044.7,1.1256]
[1761059591760,0.44481,4045.4,4045.0,2.7942]
[1761059592262,0.44483,4045.2,4045.0,2.7942]
[1761059592462,0.44486,4044.8,4044.7,2.7942]
[1761059592859,10.76086,4044.8,4044.7,2.7942]
[1761059593158,13.5228,4044.8,4044.3,0.0030243]
[1761059593464,0.4449,4044.5,4044.3,0.0030243]
[1761059593665,0.4449,4044.5,4044.3,2.7972243]
[1761059594164,0.4449,4044.5,4044.3,0.0030243]
[1761059594555,0.4449,4044.5,4044.3,2.7972243]
[1761059594760,0.44503,4043.3,4043.2,2.7942]
[1761059594959,0.44503,4043.3,4042.2,0.44515]
[1761059594960,0.44507,4042.9,4042.3,3.2078]
[1761059595156,13.96587,4042.9,4042.0,1.1256]
[1761059595464,3.65287,4042.9,4042.8,2.81893533]
[1761059595660,13.96487,4042.9,4042.8,2.81893533]
[1761059595967,20.19276905,4042.9,4042.8,0.02716368]
[1761059596259,20.19176905,4042.9,4042.8,0.02716368]
[1761059596668,18.52076905,4042.9,4042.8,0.02716368]
[1761059597054,4.88076905,4042.9,4042.8,0.02716368]
[1761059597256,15.19076905,4042.9,4042.8,0.02716368]
[1761059597662,20.19076905,4042.9,4041.6,2.7942]
[1761059597862,3.2078,4042.3,4041.6,2.7942]
[1761059598065,0.4452,4041.8,4041.6,2.7942]
[1761059598255,10.31,4042.2,4041.0,0.12002873]
[1761059598459,0.4452,4041.7,4041.0,2.4038]
[1761059598660,3.2078,4041.8,4041.0,2.40692113]
[1761059598865,0.44527,4041.2,4041.0,0.00312113]
[1761059599070,10.309,4041.1,4041.0,2.40692113]
[1761059599458,10.309,4041.1,4041.0,0.00312113]
[1761059599659,0.44527,4041.2,4041.0,0.00312113]
[1761059599858,10.309,4041.1,4041.0,0.00312113]
[1761059600754,3.2078,4041.3,4041.0,2.45922113]
[1761059600954,3.2078,4042.3,4041.2,3.2078]
[1761059601157,3.2078,4042.3,4041.6,2.4561]
[1761059601158,10.307,4042.2,4041.6,2.4561]
[1761059601366,3.2078,4042.3,4041.6,2.4561]
[1761059601367,10.307,4042.1,4041.6,2.4561]
[1761059601568,10.308,4042.0,4041.9,2.4561]
[1761059601759,3.2078,4042.3,4041.9,2.4561]
[1761059601962,3.2078,4042.3,4041.0,0.00312113]
[1761059601963,0.44527,4041.1,4041.0,0.00312113]
[1761059602264,10.75227,4041.1,4041.0,0.00312113]
[1761059603067,10.306,4041.1,4041.0,2.45922113]
[1761059603265,3.65302,4041.6,4041.2,2.4561]
[1761059603563,10.305,4041.5,4041.2,2.4561]
[1761059603764,3.2078,4042.2,4041.5,2.4561]
[1761059603966,0.44521,4041.7,4041.5,2.4561]
[1761059604163,10.304,4041.6,4041.5,2.4561]
[1761059604761,0.44526,4041.2,4041.0,0.00312113]
[1761059604960,3.2078,4041.7,4041.1,2.4561]
[1761059605364,3.2078,4041.7,4041.1,3.2078]
[1761059605578,0.44518,4042.0,4041.2,2.4561]
[1761059605876,1.1191,4042.2,4041.1,3.2078]
[1761059606066,3.2078,4041.8,4041.2,2.4561]
[1761059606258,3.2078,4041.8,4041.0,1.04572113]
[1761059606259,3.2078,4042.3,4042.1,2.4561]
[1761059606464,10.6558,4042.3,4042.1,2.4561]
[1761059606669,3.2078,4042.3,4042.1,2.4561]
[1761059606871,10.302,4042.2,4042.1,2.90126]
[1761059607066,10.302,4042.2,4042.1,2.4561]
[1761059607468,0.4452,4041.8,4041.6,5.6639]
[1761059607660,0.4452,4041.8,4041.6,2.4561]
[1761059608166,10.302,4042.2,4041.1,3.2078]
[1761059608167,0.44526,4041.2,4041.1,5.6639]
[1761059608471,10.3,4041.2,4041.1,2.4561]
[1761059608863,0.44526,4041.3,4041.1,2.4561]
[1761059609063,0.44527,4041.1,4041.0,2.45922113]
[1761059609665,0.44527,4041.1,4041.0,0.00312113]
[1761059609866,0.44527,4041.1,4041.0,2.45922113]
[1761059610065,10.74327,4041.1,4041.0,2.45922113]
[1761059610574,10.74327,4041.1,4041.0,0.00312113]
[1761059611161,15.298,4041.1,4040.5,3.2078]
[1761059611469,0.5564,4040.0,4038.2,2.4561]
[1761059611776,0.44556,4038.5,4037.8,0.02476596]
[1761059612081,2.5107,4036.9,4033.9,0.58719144]
[1761059612279,10.296,4036.8,4033.7,1.0426]
[1761059612580,2.5107,4036.2,4033.8,3.2078]
[1761059612871,2.95647,4036.7,4033.9,3.2078]
[1761059613066,3.2078,4035.7,4035.3,0.44591]
[1761059613469,3.2078,4035.7,4034.7,3.2078]
[1761059613470,3.2078,4036.2,4035.6,1.0426]
[1761059613968,3.2078,4035.7,4035.6,3.4987]
[1761059614171,3.2078,4035.7,4035.6,2.4561]
[1761059614971,3.21067979,4036.8,4035.6,8.2078]
[1761059615279,3.21067979,4036.8,4036.2,3.2078]
[1761059615474,3.21067979,4036.8,4036.2,0.4458]
[1761059615777,3.21067979,4036.8,4036.6,0.44576]
[1761059616079,5.72137979,4036.8,4036.6,0.00291994]
[1761059616266,2.5107,4036.7,4036.6,0.00291994]
[1761059616771,2.5107,4036.6,4035.2,0.44591]
[1761059616969,5.7185,4035.7,4035.2,0.44591]
[1761059617169,2.5107,4035.6,4034.7,3.2078]
[1761059617365,7.723,4035.5,4034.7,3.2078]
[1761059617577,3.2078,4035.0,4034.0,2.4561]
[1761059617873,3.2078,4035.0,4033.7,3.2078]
[1761059617874,3.2078,4035.0,4034.2,0.44602]
[1761059618080,3.2078,4035.0,4033.9,2.90216]
[1761059618081,2.95666,4034.9,4033.9,2.90216]
[1761059618270,5.7185,4034.1,4033.7,0.00220675]
[1761059618471,3.2078,4034.6,4033.8,2.4561]
[1761059618667,3.2078,4034.6,4033.7,0.00220675]
[1761059618668,3.2078,4034.6,4034.2,2.90213]
[1761059618869,3.2078,4035.1,4034.3,2.4561]
[1761059619071,3.2078,4034.6,4034.4,2.9021]
[1761059619277,3.2078,4035.1,4034.8,2.90205]
[1761059619675,2.5107,4035.0,4033.9,3.2078]
[1761059619978,3.2078,4034.6,4033.8,2.4561]
[1761059620276,3.2078,4034.3,4033.8,2.4561]
[1761059620473,3.2078,4034.9,4034.2,0.44603]
[1761059620774,3.2078,4034.9,4034.0,2.4561]
[1761059620965,3.2078,4034.9,4034.6,0.44599]
[1761059621169,2.5107,4034.8,4034.2,0.44603]
[1761059621380,2.5107,4034.8,4033.8,2.4561]
[1761059621679,3.2078,4034.9,4034.0,2.4561]
[1761059621863,3.2078,4034.4,4034.3,0.44601]
[1761059622068,5.7185,4034.4,4034.3,0.44601]
[1761059622268,3.2078,4034.4,4034.3,0.44601]
[1761059622473,3.2078,4034.4,4034.2,0.44603]
[1761059622777,3.2078,4034.4,4034.2,2.90213]
[1761059622979,3.2078,4034.4,4034.0,2.90214]
[1761059623178,3.2078,4034.4,4034.1,0.44603]
[1761059623476,5.7185,4034.4,4034.3,0.44602]
[1761059623676,3.2078,4034.4,4034.3,0.44602]
[1761059623872,3.2078,4034.9,4034.8,0.44596]
[1761059624067,3.2078,4034.9,4034.8,2.90206]
[1761059624582,0.44598,4034.7,4034.1,2.4561]
[1761059624776,3.2078,4034.4,4034.2,0.44603]
[1761059624974,3.2078,4034.4,4034.2,2.90213]
[1761059625170,3.2078,4034.4,4033.7,0.00220675]
[1761059625475,3.2078,4034.4,4034.2,0.44602]
[1761059625673,3.2078,4034.4,4034.3,2.4561]
[1761059625874,3.2078,4034.4,4034.3,7.4561]
[1761059626277,3.2078,4035.0,4034.9,0.44595]
[1761059626474,3.2078,4035.0,4034.9,2.90205]
[1761059626669,3.2078,4035.0,4034.9,7.90205]
[1761059626870,3.2078,4035.5,4035.4,2.902]
[1761059627670,3.2078,4035.5,4035.4,0.4459]
[1761059627868,3.2078,4035.5,4035.4,2.902]
[1761059628278,3.2078,4035.5,4035.4,2.4561]
[1761059628778,3.2078,4035.5,4035.4,7.4561]
[1761059629084,3.2078,4035.5,4035.4,2.4561]
[1761059630080,3.2078,4035.5,4035.3,0.4459]
[1761059630281,3.2078,4035.5,4034.9,2.4561]
[1761059630282,2.5107,4035.4,4035.2,0.44591]
[1761059630483,2.9566,4035.4,4035.0,0.44594]
[1761059630669,2.9566,4035.4,4035.1,0.44593]
[1761059630870,2.9566,4035.4,4034.9,2.4561]
[1761059630871,0.446,4034.5,4033.8,6.3532]
[1761059631173,3.2078,4034.5,4033.8,3.1454]
[1761059631370,3.2078,4034.5,4034.4,3.59141]
[1761059631572,3.2078,4034.5,4034.4,0.44601]
[1761059631772,3.2078,4034.5,4033.8,1.11517]
[1761059631773,2.9703,4034.4,4034.2,0.44602]
[1761059632383,3.2078,4034.5,4034.4,3.59141]
[1761059632679,2.9703,4035.2,4035.0,0.44594]
[1761059632882,3.2078,4035.1,4035.0,0.44594]
[1761059633086,3.2078,4035.1,4035.0,3.59134]
[1761059633476,6.1781,4035.1,4035.0,0.44594]
[1761059633677,3.65373,4035.1,4034.3,3.1454]
[1761059633984,3.2078,4034.6,4034.5,3.1454]
[1761059634682,3.2078,4034.6,4034.5,8.1454]
[1761059635184,3.2078,4035.9,4035.1,3.1454]
[1761059635387,3.41609,4036.4,4035.6,3.2078]
[1761059635687,0.44591,4035.3,4035.0,0.44593]
[1761059635877,3.41626,4034.9,4034.4,3.1454]
[1761059636189,6.1781,4035.4,4035.2,0.44592]
[1761059636687,3.2078,4035.4,4035.2,0.44592]
[1761059637188,0.44592,4035.2,4034.3,4.26044]
[1761059637379,3.2078,4034.9,4034.8,0.44595]
[1761059637782,0.446,4034.6,4033.9,3.1454]
[1761059638088,3.41634,4034.1,4033.9,0.44606]
[1761059638285,0.44606,4034.0,4033.7,0.44828675]
[1761059638582,3.2078,4034.2,4033.7,0.44828675]
[1761059638583,2.9703,4033.8,4033.7,0.00220675]
[1761059638784,0.00195986,4033.8,4033.7,0.00220675]
[1761059638985,3.41832986,4033.8,4033.7,0.00220675]
[1761059639376,2.9703,4033.7,4032.2,3.1454]
[1761059639576,3.2078,4032.9,4032.2,3.1454]
[1761059639983,3.65403,4032.4,4032.2,0.13347925]
[1761059640182,3.65403,4032.4,4031.6,3.1454]
[1761059640183,0.44629,4031.9,4031.6,3.1454]
[1761059640383,0.44632,4031.7,4031.6,0.00256546]
[1761059640591,3.64830759,4031.7,4031.6,0.00256546]
[1761059640780,0.78686288,4031.7,4031.6,0.00256546]
[1761059640981,0.78686288,4031.7,4031.6,3.59428546]
[1761059641184,6.73423757,4031.7,4031.6,0.00256546]
[1761059641484,3.99564963,4031.7,4030.6,0.44642]
[1761059641688,0.44635,4031.4,4030.7,3.1454]
[1761059641880,2.9703,4032.1,4031.3,3.1454]
[1761059642085,0.78792999,4032.0,4031.5,0.44632]
[1761059642289,0.55620452,4031.9,4031.1,3.2078]
[1761059642584,3.2078,4031.7,4031.1,3.14727672]
[1761059642783,3.2078,4032.2,4032.0,0.44627]
[1761059642992,1.3039,4033.0,4032.6,0.44621]
[1761059643190,2.9703,4032.6,4032.2,0.44625]
[1761059643495,0.88181215,4033.1,4031.1,0.00187672]
[1761059643496,6.1781,4033.2,4032.1,3.2078]
[1761059643786,6.1781,4033.2,4033.0,0.44617]
[1761059643787,3.52573654,4033.1,4033.0,0.44617]
[1761059643995,3.2078,4033.2,4033.0,0.44617]
[1761059644192,3.2078,4033.2,4033.0,3.59157]
[1761059644887,3.20975986,4033.8,4033.7,0.44609]
[1761059645191,0.55718073,4033.8,4033.7,3.59149]
[1761059645385,0.00195986,4033.8,4033.7,0.44609]
[1761059645586,0.00195986,4033.8,4033.7,3.72971012]
[1761059646384,0.00195986,4033.8,4032.8,9.024]
[1761059646385,2.97225986,4033.8,4032.8,3.2078]
[1761059646684,2.97225986,4033.8,4033.6,3.5915]
[1761059646685,3.2078,4033.7,4033.6,3.5915]
[1761059647095,3.41643,4033.4,4033.0,3.1454]
[1761059647282,0.44622,4032.6,4032.2,6.3532]
[1761059647482,3.2078,4032.4,4031.8,3.1454]
[1761059647696,2.9703,4032.3,4031.8,3.1454]
[1761059647989,2.9703,4032.1,4031.5,0.13545005]
[1761059648290,3.2078,4032.9,4032.3,3.1454]
[1761059648596,0.4462,4032.7,4032.3,3.1454]
[1761059648895,3.2078,4032.9,4032.7,0.44619]
[1761059649293,6.1781,4032.9,4032.7,0.44619]
[1761059649496,3.2078,4032.9,4031.9,3.1454]
[1761059649696,3.2078,4032.9,4032.1,3.1454]
[1761059649991,3.2078,4032.9,4032.7,0.44619]
[1761059650293,2.9703,4032.8,4032.3,0.44623]
[1761059650496,3.4165,4032.8,4032.3,0.44623]
[1761059650695,3.2078,4032.9,4032.2,3.2078]
[1761059650898,3.2078,4032.9,4032.1,0.44626]
[1761059650899,2.9703,4032.8,4032.1,0.44626]
[1761059651090,2.9703,4032.8,4031.7,3.2078]
[1761059651091,2.9703,4032.6,4032.3,0.44623]
[1761059651289,0.55789375,4032.5,4032.4,0.44622]
[1761059651485,3.2078,4032.9,4032.7,0.44619]
[1761059651687,3.2078,4033.4,4033.2,3.59154]
[1761059651989,0.55769058,4033.3,4033.2,3.59154]
[1761059652297,3.2078,4033.4,4033.2,3.59154]
[1761059652598,2.9703,4033.3,4033.0,0.44616]
[1761059652793,3.2078,4033.4,4033.2,0.44614]
[1761059653091,3.2078,4033.4,4033.3,3.1454]
[1761059654692,0.00195986,4033.8,4033.7,0.44609]
[1761059654884,2.97225986,4033.8,4033.3,3.1454]
[1761059655092,6.1781,4033.4,4033.2,0.44613]
[1761059655392,0.44616,4033.1,4032.8,0.44618]
[1761059655695,3.65398,4032.9,4032.4,3.2078]
[1761059655892,3.2078,4032.9,4032.5,3.1454]
[1761059656092,6.1781,4032.9,4032.7,0.44619]
[1761059656397,6.62428,4032.9,4032.7,0.44619]
[1761059656588,0.55776164,4032.8,4032.7,0.44619]
[1761059656795,3.2078,4033.4,4033.2,0.44613]
[1761059656990,0.55770966,4033.3,4032.8,0.44618]
[1761059657193,1.11523,4033.7,4032.8,0.44618]
[1761059657194,3.2078,4032.9,4032.8,0.44618]
[1761059657388,6.73605352,4032.9,4032.7,0.44619]
[1761059657588,3.2078,4032.9,4032.8,3.1454]
[1761059657896,3.2078,4033.4,4033.3,3.1454]
[1761059658100,3.76569264,4033.4,4033.3,3.1454]
[1761059658396,0.44616,4033.1,4032.4,3.2078]
[1761059658697,0.44615,4033.1,4032.4,6.1902]
[1761059658895,6.2491,4033.4,4032.4,6.1902]
[1761059659195,0.55815498,4033.3,4033.1,0.44614]
[1761059659494,3.2078,4033.4,4032.7,1.1155]
[1761059659495,3.2078,4033.4,4033.3,3.42853]
[1761059659703,3.76618022,4033.4,4033.3,3.42853]
[1761059660102,0.52481215,4034.9,4034.5,2.9824]
[1761059660305,0.44593,4035.1,4034.6,2.9824]
[1761059660488,6.2208,4035.5,4034.5,3.2078]
[1761059660689,0.44586,4035.8,4035.0,5.977]
[1761059660990,3.013,4035.9,4035.6,0.44587]
[1761059661190,3.45885,4035.9,4035.7,0.44586]
[1761059661496,3.45885,4035.9,4035.5,5.977]
[1761059661497,0.00199251,4035.9,4035.6,2.77115076]
[1761059661696,0.00199251,4035.9,4035.7,2.7692]
[1761059662001,0.44783251,4035.9,4035.7,2.7692]
[1761059662302,3.45887,4035.7,4035.6,0.00195076]
[1761059662497,3.013,4035.8,4035.6,0.00195076]
[1761059662699,3.01499251,4035.9,4035.6,0.00195076]
[1761059662903,0.44585,4035.8,4035.6,0.00195076]
[1761059663600,0.44784251,4035.9,4035.7,0.44586]
[1761059663802,3.45886,4035.8,4035.6,0.00195076]
[1761059664195,6.2208,4035.7,4035.6,0.00195076]
[1761059664399,3.2078,4035.7,4035.6,0.00195076]
[1761059664703,6.2208,4035.7,4035.6,0.00195076]
[1761059665097,3.2078,4035.7,4035.6,0.00195076]
[1761059665298,0.44586,4035.8,4035.6,0.00195076]
[1761059665500,3.013,4035.7,4035.6,0.00195076]
[1761059666500,3.013,4035.5,4033.4,2.7692]
[1761059666696,3.013,4035.0,4034.1,3.2078]
[1761059666895,0.44603,4034.3,4034.1,3.2078]
[1761059667097,0.44612,4033.5,4033.1,2.7692]
[1761059667297,3.013,4033.8,4033.4,0.44612]
[1761059667499,0.44611,4033.5,4033.4,0.13628558]
[1761059667698,0.44611,4033.5,4033.4,2.90548558]
[1761059668100,3.2078,4034.5,4033.6,2.7692]
[1761059668300,0.44601,4034.5,4034.1,3.65384]
[1761059668502,0.44601,4034.4,4034.2,2.7692]
[1761059668896,3.013,4035.1,4034.2,2.7692]
[1761059669307,1.11466,4035.8,4034.8,2.7692]
[1761059669494,3.013,4035.4,4034.6,2.7692]
[1761059669698,3.013,4035.4,4034.9,3.21515]
[1761059669699,0.44593,4035.2,4034.9,3.21515]
[1761059669898,3.013,4035.4,4034.7,3.2078]
[1761059669899,0.44596,4034.9,4034.7,3.2078]
[1761059670101,0.44598,4034.7,4034.4,0.44601]
[1761059670409,0.44599,4034.6,4034.4,0.44601]
[1761059670710,0.44595,4035.0,4034.1,3.2078]
[1761059670900,0.44596,4034.9,4034.4,2.7692]
[1761059671101,1.11471,4035.6,4034.4,2.7692]
[1761059671102,0.446,4034.5,4034.4,2.7692]
[1761059671299,3.45902,4034.3,4034.1,3.2078]
[1761059671606,0.44608,4033.8,4033.6,3.2078]
[1761059671800,0.44609,4033.7,4033.5,5.977]
[1761059672404,0.44609,4033.7,4033.6,2.7692]
[1761059672808,0.44607,4033.9,4033.6,3.21529]
[1761059673007,0.44608,4033.8,4033.6,2.7692]
[1761059673312,3.013,4034.2,4033.4,2.90548558]
[1761059673612,0.4461,4033.6,4033.4,3.35159558]
[1761059674006,0.44606,4034.0,4033.6,2.7692]
[1761059674214,3.2078,4034.5,4033.7,2.7692]
[1761059674507,0.44605,4034.1,4034.0,2.7692]
[1761059675111,0.44607,4033.9,4033.7,3.21528]
[1761059675502,6.2208,4034.5,4033.5,3.2078]
[1761059675503,0.4461,4033.6,4033.5,3.2078]
[1761059675707,3.2078,4034.0,4033.5,2.7692]
[1761059675906,3.013,4034.3,4033.7,2.7692]
[1761059675907,0.44608,4033.8,4033.7,2.7692]
[1761059676108,3.013,4034.3,4033.4,0.00244608]
[1761059676109,3.4591,4033.6,4033.4,0.00244608]
[1761059676406,1.1152,4033.9,4032.7,2.7692]
[1761059676407,4.12831,4033.4,4032.7,2.7692]
[1761059676601,0.4462,4032.7,4032.6,0.24507249]
[1761059676808,0.44623,4032.5,4032.3,0.44623]
[1761059677114,6.2208,4034.0,4032.4,2.7692]
[1761059677313,3.2106302,4034.0,4033.0,2.7692]
[1761059677620,0.0028302,4034.0,4033.8,3.21527]
[1761059678004,0.0028302,4034.0,4033.8,8.21527]
[1761059678306,0.0028302,4034.0,4033.9,5.977]
[1761059678507,3.2078,4035.2,4034.9,0.44595]
[1761059678711,3.013,4035.5,4034.5,3.2078]
[1761059678916,0.446,4034.5,4034.1,3.21524]
[1761059679117,0.446,4034.5,4034.3,0.44602]
[1761059679412,0.44599,4034.7,4034.5,0.446]
[1761059679609,0.44832258,4034.7,4034.4,3.2152]
[1761059679807,0.44832258,4034.7,4034.5,3.2078]
[1761059680007,0.44832258,4034.7,4034.4,2.7692]
[1761059680214,0.00234258,4034.7,4034.5,0.446]
[1761059680407,0.44832258,4034.7,4034.5,0.446]
[1761059680809,0.446,4034.6,4034.4,2.7692]
[1761059681009,0.00234258,4034.7,4034.4,0.44601]
[1761059681206,0.00234258,4034.7,4033.3,1.11532]
[1761059681207,3.013,4034.1,4033.5,3.2078]
[1761059681408,0.44601,4034.4,4034.1,0.44604]
[1761059681613,0.44602,4034.4,4034.2,2.7692]
[1761059681807,6.22314258,4034.7,4034.2,2.7692]
[1761059682009,0.44603,4034.2,4034.1,3.65384]
[1761059682312,3.01534258,4034.7,4034.0,0.44605]
[1761059683115,3.01534258,4034.7,4034.1,0.44604]
[1761059683311,3.01534258,4034.7,4034.1,2.7692]
[1761059683511,3.01534258,4034.7,4034.2,3.21523]
[1761059683716,3.01534258,4034.7,4034.3,0.44602]
[1761059684019,0.44601,4034.5,4034.3,2.7692]
[1761059684718,0.44601,4034.5,4034.1,3.2078]
[1761059684719,0.44603,4034.3,4034.1,5.977]
[1761059685114,0.44603,4034.3,4034.1,3.2078]
[1761059685320,0.44603,4034.3,4034.2,2.7692]
[1761059686213,0.44605,4034.1,4033.9,3.21526]
[1761059687116,0.44605,4034.1,4033.9,2.7692]
[1761059687313,0.44605,4034.1,4034.0,2.7692]
[1761059688015,3.013,4035.3,4034.5,0.44599]
[1761059688212,3.013,4035.3,4034.6,2.7692]
[1761059688412,3.013,4035.0,4034.7,0.44598]
[1761059688615,0.44596,4034.9,4034.8,2.7692]
[1761059688824,0.44597,4034.9,4034.7,3.21518]
[1761059689012,0.0031697,4034.9,4034.2,0.44602]
[1761059689215,3.013,4034.8,4034.3,0.44602]
[1761059689419,3.013,4034.8,4034.3,3.21522]
[1761059689815,3.013,4034.8,4034.4,0.44601]
[1761059690320,3.013,4034.8,4034.4,5.977]
[1761059690522,0.44599,4034.6,4034.5,0.446]
[1761059690720,0.44598,4034.7,4034.5,0.446]
[1761059691223,0.446,4034.5,4034.4,3.2078]
[1761059691923,3.2959,4034.5,4034.4,3.2078]
[1761059692116,0.44598,4034.7,4034.4,3.2078]
[1761059692322,0.44599,4034.6,4034.5,0.446]
[1761059692624,0.0031697,4034.9,4034.6,2.8387]
[1761059692817,0.44598,4034.8,4034.7,0.44598]
[1761059693016,2.8499,4034.8,4034.4,3.2078]
[1761059693224,3.29588,4034.7,4034.6,0.44599]
[1761059693616,0.44597,4034.8,4034.7,0.44598]
[1761059693821,3.29587,4034.8,4034.7,0.44598]
[1761059694019,0.44599,4034.6,4034.5,0.44599]
[1761059694318,2.8499,4034.8,4034.7,0.44598]
[1761059694529,0.0031697,4034.9,4034.8,3.28467]
[1761059695123,3.2990297,4034.9,4034.8,0.44597]
[1761059695518,0.4491297,4034.9,4034.8,3.52610696]
[1761059696424,3.2990297,4034.9,4034.8,0.44597]
[1761059696820,3.2990297,4034.9,4034.8,0.68837952]